fUST/lending_fUST_20240501
["ID","MTS","AMOUNT","RATE_DAILY","PERIOD"]
[325085918,1714512641411,-500.0,0.00032054,2]
[325085921,1714512641422,-500.0,0.00032054,2]
[325085923,1714512641431,-500.0,0.00032054,2]
[325085924,1714512641441,-500.0,0.00032054,2]
[325085926,1714512641450,-500.0,0.00032054,2]
[325085928,1714512641459,-500.0,0.00032054,2]
[325085930,1714512641471,-500.0,0.00032054,2]
[325085933,1714512641481,-500.0,0.00032054,2]
[325085934,1714512641491,-500.0,0.00032054,2]
[325085936,1714512641500,-500.0,0.00032054,2]
[325085947,1714512641587,-500.0,0.00032054,2]
[325085949,1714512641597,-500.0,0.00032054,2]
[325085951,1714512641606,-152.57367532,0.00032054,2]
[325085953,1714512641615,-500.0,0.00032054,2]
[325085955,1714512641625,-577.61,0.00032054,2]
[325085957,1714512641634,-500.0,0.00032054,2]
[325085959,1714512641643,-500.0,0.00032054,2]
[325085961,1714512641652,-576.73363341,0.00032054,2]
[325085963,1714512641661,-500.0,0.00032054,2]
[325085965,1714512641670,-500.0,0.00032054,2]
[325085967,1714512641679,-500.0,0.00032054,2]
[325085968,1714512641688,-500.0,0.00032054,2]
[325085971,1714512641698,-500.0,0.00032054,2]
[325085973,1714512641707,-500.0,0.00032054,2]
[325085975,1714512641716,-500.0,0.00032054,2]
[325085977,1714512641725,-500.0,0.00032054,2]
[325085978,1714512641735,-500.0,0.00032054,2]
[325085980,1714512641745,-500.0,0.00032054,2]
[325085983,1714512641755,-500.0,0.00032054,2]
[325085985,1714512641763,-500.0,0.00032054,2]
[325085987,1714512641773,-314.71469119,0.00032054,2]
[325085989,1714512641782,-500.0,0.00032054,2]
[325085991,1714512641792,-500.0,0.00032054,30]
[325085993,1714512641801,-500.0,0.00032327,2]
[325085994,1714512641810,-500.0,0.00032328,2]
[325085997,1714512641820,-500.0,0.00032328,2]
[325085998,1714512641829,-500.0,0.00032328,2]
[325086000,1714512641839,-500.0,0.00032328,2]
[325086002,1714512641848,-500.0,0.00032328,2]
[325086004,1714512641858,-500.0,0.00032328,2]
[325086007,1714512641867,-500.0,0.00032328,2]
[325086009,1714512641876,-500.0,0.00032328,2]
[325086011,1714512641885,-500.0,0.00032328,2]
[325086013,1714512641895,-500.0,0.00032328,2]
[325086015,1714512641904,-224.96550399,0.00032328,2]
[325086016,1714512641913,-500.0,0.00032328,2]
[325086018,1714512641922,-500.0,0.00032328,2]
[325086020,1714512641931,-500.0,0.00032328,2]
[325086022,1714512641940,-500.0,0.00032328,2]
[325086024,1714512641949,-500.0,0.00032328,2]
[325086027,1714512641959,-500.0,0.00032328,2]
[325086029,1714512641967,-500.0,0.00032328,2]
[325086031,1714512641977,-604.5924382,0.00032328,2]
[325086033,1714512641986,-500.0,0.00032328,2]
[325086034,1714512641996,-500.0,0.00032328,2]
[325086037,1714512642006,-500.0,0.00032328,2]
[325086038,1714512642015,-500.0,0.00032328,2]
[325086040,1714512642024,-500.0,0.00032328,2]
[325086042,1714512642033,-500.0,0.00032328,2]
[325086044,1714512642043,-500.0,0.00032328,2]
[325086047,1714512642052,-500.0,0.00032328,2]
[325086048,1714512642061,-500.0,0.00032328,2]
[325086050,1714512642070,-500.0,0.00032328,2]
[325086053,1714512642079,-500.0,0.00032328,2]
[325086054,1714512642088,-500.0,0.00032328,2]
[325086057,1714512642097,-500.0,0.00032328,2]
[325086058,1714512642106,-500.0,0.00032328,2]
[325086061,1714512642115,-503.78366724,0.00032328,2]
[325086062,1714512642125,-500.0,0.00032328,2]
[325086064,1714512642134,-500.0,0.00032328,2]
[325086066,1714512642143,-500.0,0.00032328,2]
[325086068,1714512642152,-500.0,0.00032328,2]
[325086070,1714512642162,-500.0,0.00032328,2]
[325086072,1714512642171,-500.0,0.00032328,2]
[325086074,1714512642181,-500.0,0.00032328,2]
[325086076,1714512642190,-500.0,0.00032328,2]
[325086078,1714512642199,-500.0,0.00032328,2]
[325086080,1714512642207,-500.0,0.00032328,2]
[325086082,1714512642217,-500.0,0.00032328,2]
[325086084,1714512642226,-500.0,0.00032328,2]
[325086086,1714512642236,-500.0,0.00032328,2]
[325086089,1714512642245,-500.0,0.00032328,2]
[325086090,1714512642255,-500.0,0.00032328,2]
[325086092,1714512642264,-500.0,0.00032328,2]
[325086095,1714512642273,-500.0,0.00032328,2]
[325086097,1714512642282,-500.0,0.00032328,2]
[325086099,1714512642292,-500.0,0.00032328,2]
[325086101,1714512642301,-500.0,0.00032328,2]
[325086103,1714512642310,-500.0,0.00032328,2]
[325086104,1714512642319,-500.0,0.00032328,2]
[325086106,1714512642328,-500.0,0.00032328,2]
[325086109,1714512642338,-500.0,0.00032328,2]
[325086110,1714512642347,-500.0,0.00032328,2]
[325086112,1714512642356,-500.0,0.00032328,2]
[325086115,1714512642365,-500.0,0.00032328,2]
[325086117,1714512642375,-500.0,0.00032328,2]
[325086119,1714512642388,-500.0,0.00032328,2]
[325086120,1714512642397,-268.55716897,0.00032328,2]
[325086122,1714512642406,-500.0,0.00032328,2]
[325086124,1714512642415,-500.0,0.00032328,2]
[325086126,1714512642425,-500.0,0.00032328,2]
[325086128,1714512642435,-500.0,0.00032328,2]
[325086130,1714512642444,-500.0,0.00032328,2]
[325086132,1714512642453,-500.0,0.00032328,2]
[325086134,1714512642463,-500.0,0.00032328,2]
[325086136,1714512642472,-500.0,0.00032328,2]
[325086138,1714512642481,-500.0,0.00032328,2]
[325086141,1714512642491,-500.0,0.00032328,2]
[325086142,1714512642500,-500.0,0.00032328,2]
[325086145,1714512642509,-500.0,0.00032328,2]
[325086146,1714512642518,-500.0,0.00032328,2]
[325086148,1714512642528,-500.0,0.00032328,2]
[325086150,1714512642537,-500.0,0.00032328,2]
[325086152,1714512642546,-500.0,0.00032328,2]
[325086154,1714512642555,-500.0,0.00032328,2]
[325086156,1714512642564,-500.0,0.00032328,2]
[325086158,1714512642574,-500.0,0.00032328,2]
[325086160,1714512642583,-510.2,0.00032328,2]
[325086162,1714512642592,-500.0,0.00032328,2]
[325086164,1714512642602,-500.0,0.00032328,2]
[325086166,1714512642611,-500.0,0.00032328,2]
[325086168,1714512642620,-500.0,0.00032328,2]
[325086170,1714512642629,-500.0,0.00032328,2]
[325086172,1714512642638,-500.0,0.00032328,2]
[325086174,1714512642647,-500.0,0.00032328,2]
[325086176,1714512642656,-500.0,0.00032328,2]
[325086178,1714512642665,-500.0,0.00032328,2]
[325086180,1714512642675,-577.61,0.00032328,2]
[325086182,1714512642684,-500.0,0.00032328,2]
[325086184,1714512642694,-500.0,0.00032328,2]
[325086186,1714512642703,-500.0,0.00032328,2]
[325086187,1714512642712,-513.51,0.00032328,2]
[325086189,1714512642721,-500.0,0.00032328,2]
[325086191,1714512642730,-500.0,0.00032328,2]
[325086192,1714512642741,-500.0,0.00032328,2]
[325086193,1714512642750,-500.0,0.00032328,2]
[325086195,1714512642759,-500.0,0.00032328,2]
[325086197,1714512642768,-500.0,0.00032328,2]
[325086199,1714512642779,-500.0,0.00032328,2]
[325086202,1714512642788,-515.66609002,0.00032328,2]
[325086205,1714512642797,-500.0,0.00032328,2]
[325086207,1714512642806,-500.0,0.00032328,2]
[325086211,1714512642816,-500.0,0.00032328,30]
[325086214,1714512642825,-500.0,0.00032602,2]
[325086217,1714512642834,-500.0,0.00032602,2]
[325086220,1714512642843,-500.0,0.00032602,2]
[325086223,1714512642852,-500.0,0.00032602,2]
[325086225,1714512642861,-500.0,0.00032602,2]
[325086227,1714512642870,-500.0,0.00032602,2]
[325086230,1714512642879,-500.0,0.00032602,2]
[325086233,1714512642888,-500.0,0.00032602,2]
[325086236,1714512642897,-500.0,0.00032602,2]
[325086238,1714512642905,-500.0,0.00032602,2]
[325086240,1714512642914,-500.0,0.00032602,2]
[325086242,1714512642923,-198.05521482,0.00032602,2]
[325086243,1714512642932,-500.0,0.00032602,2]
[325086245,1714512642941,-500.0,0.00032602,2]
[325086247,1714512642950,-500.0,0.00032602,2]
[325086249,1714512642959,-500.0,0.00032602,2]
[325086251,1714512642968,-500.0,0.00032602,2]
[325086253,1714512642977,-500.0,0.00032602,2]
[325086255,1714512642986,-500.0,0.00032602,2]
[325086258,1714512642996,-500.0,0.00032602,2]
[325086260,1714512643005,-500.0,0.00032602,2]
[325086262,1714512643014,-500.0,0.00032602,2]
[325086264,1714512643022,-500.0,0.00032602,2]
[325086266,1714512643032,-500.0,0.00032602,2]
[325086268,1714512643041,-500.0,0.00032602,2]
[325086270,1714512643050,-500.0,0.00032602,2]
[325086272,1714512643059,-500.0,0.00032602,2]
[325086274,1714512643068,-500.0,0.00032602,2]
[325086276,1714512643077,-500.0,0.00032602,2]
[325086278,1714512643087,-500.0,0.00032602,2]
[325086280,1714512643095,-500.0,0.00032602,2]
[325086282,1714512643105,-500.0,0.00032602,2]
[325086284,1714512643114,-500.0,0.00032602,2]
[325086286,1714512643124,-500.0,0.00032602,2]
[325086288,1714512643133,-207.03502404,0.00032602,2]
[325086290,1714512643142,-500.0,0.00032602,2]
[325086292,1714512643151,-500.0,0.00032602,2]
[325086294,1714512643160,-500.0,0.00032602,2]
[325086296,1714512643169,-500.0,0.00032602,2]
[325086298,1714512643178,-500.0,0.00032602,2]
[325086300,1714512643187,-500.0,0.00032602,2]
[325086302,1714512643196,-500.0,0.00032602,2]
[325086304,1714512643205,-500.0,0.00032602,2]
[325086306,1714512643214,-500.0,0.00032602,2]
[325086308,1714512643224,-500.0,0.00032602,2]
[325086310,1714512643233,-500.0,0.00032602,2]
[325086312,1714512643243,-500.0,0.00032602,2]
[325086314,1714512643253,-500.0,0.00032602,2]
[325086316,1714512643262,-500.0,0.00032602,2]
[325086318,1714512643271,-500.0,0.00032602,2]
[325086320,1714512643280,-500.0,0.00032602,2]
[325086322,1714512643289,-500.0,0.00032602,2]
[325086324,1714512643298,-500.0,0.00032602,2]
[325086326,1714512643308,-500.0,0.00032602,2]
[325086328,1714512643317,-500.0,0.00032602,2]
[325086330,1714512643326,-500.0,0.00032602,2]
[325086331,1714512643335,-500.0,0.00032602,2]
[325086333,1714512643345,-500.0,0.00032602,2]
[325086335,1714512643354,-500.0,0.00032602,2]
[325086337,1714512643363,-500.0,0.00032602,2]
[325086339,1714512643373,-500.0,0.00032602,2]
[325086341,1714512643386,-611.37683608,0.00032602,2]
[325086343,1714512643397,-500.0,0.00032602,2]
[325086345,1714512643406,-500.0,0.00032602,2]
[325086347,1714512643417,-500.0,0.00032602,2]
[325086350,1714512643428,-500.0,0.00032602,2]
[325086351,1714512643438,-500.0,0.00032602,2]
[325086354,1714512643448,-500.0,0.00032602,2]
[325086357,1714512643458,-577.61,0.00032602,2]
[325086361,1714512643468,-500.0,0.00032602,2]
[325086366,1714512643478,-500.0,0.00032602,2]
[325086368,1714512643488,-500.0,0.00032602,2]
[325086371,1714512643497,-508.83905917,0.00032602,2]
[325086375,1714512643507,-500.0,0.00032602,2]
[325086378,1714512643516,-500.0,0.00032602,2]
[325086381,1714512643525,-500.0,0.00032602,2]
[325086384,1714512643534,-500.0,0.00032602,2]
[325086387,1714512643544,-500.0,0.00032602,2]
[325086390,1714512643553,-500.0,0.00032602,2]
[325086394,1714512643562,-414.05967044,0.00032602,2]
[325086396,1714512643572,-500.0,0.00032602,2]
[325086399,1714512643581,-475.60935481,0.00032602,30]
[325086401,1714512643591,-500.0,0.00032876,2]
[325086403,1714512643600,-500.0,0.00032876,2]
[325086406,1714512643610,-500.0,0.00032876,2]
[325086408,1714512643619,-500.0,0.00032876,2]
[325086410,1714512643628,-500.0,0.00032876,2]
[325086411,1714512643638,-180.95431423,0.00032876,2]
[325086414,1714512643648,-500.0,0.00032876,2]
[325086415,1714512643656,-439.5911198,0.00032876,2]
[325086417,1714512643666,-500.0,0.00032876,2]
[325086419,1714512643675,-500.0,0.00032876,2]
[325086422,1714512643685,-500.0,0.00032876,2]
[325086423,1714512643694,-500.0,0.00032876,2]
[325086426,1714512643703,-475.93,0.00032876,2]
[325086428,1714512643713,-500.0,0.00032876,2]
[325086429,1714512643722,-500.0,0.00032876,2]
[325086431,1714512643732,-500.0,0.00032876,2]
[325086433,1714512643742,-500.0,0.00032876,2]
[325086436,1714512643752,-500.0,0.00032876,2]
[325086437,1714512643761,-500.0,0.00032876,2]
[325086439,1714512643770,-500.0,0.00032876,2]
[325086442,1714512643782,-500.0,0.00032876,2]
[325086444,1714512643791,-500.0,0.00032876,2]
[325086446,1714512643801,-500.0,0.00032876,2]
[325086448,1714512643810,-500.0,0.00032876,2]
[325086449,1714512643819,-500.0,0.00032876,2]
[325086451,1714512643828,-500.0,0.00032876,2]
[325086454,1714512643838,-500.0,0.00032876,2]
[325086455,1714512643847,-500.0,0.00032876,2]
[325086457,1714512643857,-500.0,0.00032876,2]
[325086459,1714512643865,-500.0,0.00032876,2]
[325086470,1714512643950,-204.22488387,0.00032876,2]
[325086472,1714512643959,-500.0,0.00032876,2]
[325086474,1714512643969,-500.0,0.00032876,2]
[325086475,1714512643978,-500.0,0.00032876,2]
[325086477,1714512643988,-551.84887125,0.00032876,2]
[325086480,1714512643998,-288.9,0.00032876,2]
[325086481,1714512644007,-500.0,0.00032876,2]
[325086483,1714512644017,-500.0,0.00032876,2]
[325086485,1714512644027,-500.0,0.00032876,2]
[325086488,1714512644037,-999.0,0.00032876,7]
[325086490,1714512644046,-1106.42,0.00032876,10]
[325086491,1714512644055,-150.67,0.00032876,2]
[325086493,1714512644065,-445.5,0.00032876,2]
[325086495,1714512644074,-500.0,0.00032876,2]
[325086497,1714512644083,-500.0,0.00032876,2]
[325086499,1714512644093,-607.15,0.00032876,2]
[325086502,1714512644103,-500.0,0.00032876,2]
[325086503,1714512644112,-534.56,0.00032876,2]
[325086505,1714512644121,-423.64,0.00032876,2]
[325086507,1714512644130,-500.0,0.00032876,2]
[325086509,1714512644139,-500.0,0.00032876,2]
[325086511,1714512644149,-500.0,0.00032876,2]
[325086513,1714512644158,-166.24,0.00032876,2]
[325086515,1714512644167,-577.61,0.00032876,2]
[325086517,1714512644176,-500.0,0.00032876,2]
[325086519,1714512644185,-500.0,0.00032876,2]
[325086521,1714512644195,-500.0,0.00032876,2]
[325086523,1714512644204,-500.0,0.00032876,2]
[325086525,1714512644213,-500.0,0.00032876,2]
[325086527,1714512644223,-500.0,0.00032876,2]
[325086529,1714512644232,-500.0,0.00032876,2]
[325086531,1714512644242,-500.0,0.00032876,2]
[325086533,1714512644251,-500.0,0.00032876,2]
[325086535,1714512644260,-500.0,0.00032876,2]
[325086537,1714512644270,-1000.0,0.00033149,30]
[325086539,1714512644279,-1000.0,0.00033149,30]
[325086541,1714512644289,-500.0,0.00033149,7]
[325086543,1714512644297,-500.0,0.0003315,7]
[325086545,1714512644307,-500.0,0.0003315,7]
[325086547,1714512644316,-500.0,0.0003315,7]
[325086549,1714512644326,-500.0,0.0003315,7]
[325086551,1714512644335,-500.0,0.0003315,7]
[325086553,1714512644344,-500.0,0.0003315,7]
[325086555,1714512644353,-624.98,0.0003315,7]
[325086557,1714512644363,-500.0,0.0003315,7]
[325086559,1714512644372,-500.0,0.0003315,7]
[325086561,1714512644386,-627.59,0.0003315,7]
[325086563,1714512644396,-500.0,0.0003315,7]
[325086565,1714512644405,-500.0,0.0003315,7]
[325086567,1714512644414,-500.0,0.0003315,7]
[325086569,1714512644425,-500.0,0.0003315,7]
[325086571,1714512644434,-500.0,0.0003315,7]
[325086573,1714512644443,-500.0,0.0003315,7]
[325086575,1714512644453,-500.0,0.0003315,7]
[325086577,1714512644464,-500.0,0.0003315,7]
[325086579,1714512644474,-500.0,0.0003315,7]
[325086581,1714512644483,-595.06755199,0.0003315,7]
[325086583,1714512644493,-500.0,0.0003315,7]
[325086585,1714512644502,-500.0,0.0003315,7]
[325086587,1714512644511,-500.0,0.0003315,7]
[325086589,1714512644521,-500.0,0.0003315,7]
[325086591,1714512644530,-500.0,0.0003315,7]
[325086593,1714512644540,-500.0,0.0003315,7]
[325086595,1714512644549,-500.0,0.0003315,7]
[325086597,1714512644559,-635.54184902,0.0003315,7]
[325086599,1714512644570,-500.0,0.0003315,7]
[325086601,1714512644579,-264.15,0.0003315,7]
[325086603,1714512644588,-500.0,0.0003315,7]
[325086605,1714512644597,-555.72,0.0003315,7]
[325086607,1714512644606,-500.0,0.0003315,7]
[325086609,1714512644615,-577.61,0.0003315,7]
[325086611,1714512644625,-500.0,0.0003315,7]
[325086613,1714512644634,-495.55003766,0.0003315,7]
[325086615,1714512644643,-500.0,0.0003315,7]
[325086617,1714512644652,-500.0,0.0003315,7]
[325086619,1714512644662,-235.08202909,0.0003315,7]
[325086621,1714512644671,-500.0,0.0003315,7]
[325086623,1714512644680,-500.0,0.0003315,7]
[325086625,1714512644689,-500.0,0.0003315,7]
[325086627,1714512644698,-575.48,0.00033424,7]
[325086629,1714512644707,-500.0,0.00033424,7]
[325086631,1714512644720,-500.0,0.00033424,7]
[325086633,1714512644730,-500.0,0.00033424,7]
[325086635,1714512644739,-500.0,0.00033424,7]
[325086637,1714512644748,-500.0,0.00033424,7]
[325086639,1714512644757,-262.62,0.00033424,7]
[325086641,1714512644767,-500.0,0.00033424,7]
[325086643,1714512644775,-432.60446399,0.00033424,7]
[325086645,1714512644785,-500.0,0.00033424,7]
[325086647,1714512644795,-500.0,0.00033424,7]
[325086649,1714512644804,-500.0,0.00033424,7]
[325086651,1714512644814,-500.0,0.00033424,7]
[325086653,1714512644825,-485.43,0.00033424,7]
[325086655,1714512644835,-500.0,0.00033424,7]
[325086657,1714512644844,-500.0,0.00033424,7]
[325086659,1714512644853,-500.0,0.00033424,7]
[325086661,1714512644862,-500.0,0.00033424,7]
[325086663,1714512644871,-500.0,0.00033424,7]
[325086665,1714512644881,-577.61,0.00033424,7]
[325086667,1714512644890,-500.0,0.00033424,7]
[325086669,1714512644899,-176.21774259,0.00033424,7]
[325086671,1714512644908,-500.0,0.00033424,7]
[325086673,1714512644917,-541.34,0.00033424,7]
[325086675,1714512644926,-500.0,0.00033424,7]
[325086677,1714512644935,-203.43,0.00033698,7]
[325086679,1714512644946,-500.0,0.00033698,7]
[325086681,1714512644956,-500.0,0.00033698,7]
[325086683,1714512644965,-332.16,0.00033698,7]
[325086685,1714512644974,-500.0,0.00033698,7]
[325086687,1714512644983,-500.0,0.00033698,7]
[325086689,1714512644992,-500.0,0.00033698,7]
[325086691,1714512645002,-500.0,0.00033698,7]
[325086693,1714512645011,-500.0,0.00033698,7]
[325086695,1714512645020,-500.0,0.00033698,7]
[325086696,1714512645029,-500.0,0.00033698,7]
[325086698,1714512645038,-500.0,0.00033698,7]
[325086700,1714512645047,-500.0,0.00033698,7]
[325086702,1714512645057,-500.0,0.00033698,7]
[325086704,1714512645066,-577.61,0.00033698,7]
[325086706,1714512645075,-500.0,0.00033698,7]
[325086708,1714512645084,-500.0,0.00033698,7]
[325086710,1714512645093,-218.77,0.00033972,7]
[325086712,1714512645102,-151.04,0.00033972,7]
[325086714,1714512645111,-574.6914966,0.00033972,7]
[325086716,1714512645120,-173.75375556,0.00033972,7]
[325086718,1714512645130,-216.65130462,0.00033972,7]
[325086720,1714512645139,-500.0,0.00033972,7]
[325086722,1714512645147,-500.0,0.00033972,7]
[325086724,1714512645156,-500.0,0.00033972,7]
[325086726,1714512645166,-500.0,0.00033972,7]
[325086727,1714512645175,-438.07,0.00033972,7]
[325086728,1714512645183,-500.0,0.00033972,7]
[325086729,1714512645192,-500.0,0.00033972,7]
[325086730,1714512645201,-577.61,0.00033972,7]
[325086731,1714512645210,-500.0,0.00033972,7]
[325086732,1714512645219,-500.0,0.00033972,7]
[325086733,1714512645227,-466.43678541,0.00034,4]
[325086734,1714512645237,-348.19,0.00034246,7]
[325086736,1714512645246,-500.0,0.00034246,7]
[325086738,1714512645255,-500.0,0.00034246,7]
[325086740,1714512645264,-178.73,0.00034246,7]
[325086742,1714512645272,-500.0,0.00034246,7]
[325086744,1714512645281,-577.61,0.00034246,7]
[325086745,1714512645290,-500.0,0.00034246,7]
[325086748,1714512645299,-289.68,0.00034246,7]
[325086750,1714512645308,-187.928216,0.00034307,2]
[325086751,1714512645317,-187.928216,0.00034307,2]
[325086753,1714512645326,-500.0,0.0003452,7]
[325086755,1714512645336,-500.0,0.0003452,7]
[325086757,1714512645345,-500.0,0.0003452,7]
[325086760,1714512645354,-577.61,0.0003452,7]
[325086762,1714512645363,-500.0,0.0003452,7]
[325086764,1714512645373,-256.865754,0.00034521,2]
[325086766,1714512645383,-500.0,0.00034794,7]
[325086768,1714512645395,-380.01,0.00034794,7]
[325086770,1714512645404,-500.0,0.00034794,7]
[325086771,1714512645414,-577.61,0.00034794,7]
[325086774,1714512645423,-500.0,0.00034794,7]
[325086775,1714512645433,-214.63686045,0.00035,4]
[325086778,1714512645444,-5916.15000564,0.00035,4]
[325086780,1714512645454,-1143.31357685,0.00035,4]
[325086781,1714512645464,-854.20368441,0.00035,2]
[325086783,1714512645473,-425.45157815,0.00035,10]
[325086786,1714512645483,-500.0,0.00035068,7]
[325086787,1714512645494,-500.0,0.00035068,7]
[325086789,1714512645503,-577.61,0.00035068,7]
[325086791,1714512645512,-315.52,0.00035068,7]
[325086794,1714512645521,-417.38,0.00035342,7]
[325086796,1714512645530,-500.0,0.00035342,7]
[325086797,1714512645539,-577.61,0.00035342,7]
[325086800,1714512645549,-1138.221058,0.000356,19]
[325086802,1714512645559,-500.0,0.00035616,7]
[325086804,1714512645569,-577.61,0.00035616,7]
[325086806,1714512645578,-500.0,0.0003589,7]
[325086808,1714512645587,-577.61,0.0003589,7]
[325086809,1714512645596,-500.0,0.00036164,7]
[325086812,1714512645605,-577.61,0.00036164,7]
[325086814,1714512645616,-500.0,0.00036438,7]
[325086815,1714512645625,-577.61,0.00036438,7]
[325086817,1714512645635,-153.40602022,0.00036537,14]
[325086819,1714512645644,-500.0,0.00036712,7]
[325086821,1714512645653,-577.61,0.00036712,7]
[325086823,1714512645663,-500.0,0.00036986,7]
[325086825,1714512645672,-577.61,0.00036986,7]
[325086827,1714512645681,-2048.94915237,0.00037,2]
[325086829,1714512645690,-500.0,0.0003726,7]
[325086831,1714512645699,-577.61,0.0003726,7]
[325086833,1714512645709,-550.27,0.00037534,7]
[325086835,1714512645719,-577.61,0.00037534,7]
[325086838,1714512645728,-577.61,0.00037808,7]
[325086839,1714512645738,-577.71986771,0.00038082,7]
[325086841,1714512645747,-150.77383924,0.00038782,2]
[325086843,1714512645757,-301.54767848,0.00039434,4]
[325086845,1714512645765,-995.34373713,0.0004,10]
[325086847,1714512645774,-1494.73310979,0.0004,30]
[325086850,1714512645786,-607.90370086,0.0004,2]
[325086852,1714512645797,-603.09535696,0.00040097,7]
[325086854,1714512645807,-256.865754,0.00040548,2]
[325086856,1714512645815,-315.91320862,0.00041,2]
[325086858,1714512645824,-154.78330338,0.0004234,10]
[325086860,1714512645834,-304.0,0.00042849,3]
[325086862,1714512645843,-500.0,0.000429,42]
[325086864,1714512645851,-7949.7620179,0.00043836,120]
[325086866,1714512645860,-8766.17390386,0.00045,120]
[325086868,1714512645870,-154.78330338,0.000459,4]
[325086870,1714512645879,-1688.0,0.00046,120]
[325086872,1714512645888,-256.865754,0.00046575,2]
[325086874,1714512645898,-500.0,0.00048999,7]
[325086876,1714512645907,-6707.53843648,0.00049,120]
[325086877,1714512645916,-154.78330338,0.0005,30]
[325086879,1714512645925,-8560.14311984,0.0005,120]
[325086881,1714512645934,-169.75789,0.0005227,2]
[325086884,1714512645943,-256.865754,0.00052603,2]
[325086885,1714512645952,-304.0,0.00055603,3]
[325086887,1714512645961,-150.77383924,0.00058174,2]
[325086889,1714512645971,-256.865754,0.0005863,2]
[325086891,1714512645980,-256.865754,0.00064658,2]
[325086893,1714512645989,-160.567912,0.0006484,2]
[325086895,1714512645998,-300.6281754,0.000669,120]
[325086897,1714512646007,-304.0,0.00068357,14]
[325086899,1714512646017,-250.0,0.00068493,120]
[325086901,1714512646025,-500.0,0.00068493,120]
[325086903,1714512646035,-750.0,0.00068493,120]
[325086905,1714512646044,-1000.0,0.00068493,120]
[325086907,1714512646053,-1250.0,0.00068493,120]
[325086917,1714512646130,-1004.60035308,0.00068493,120]
[325086919,1714512646148,-154.78330338,0.00069,7]
[325086921,1714512646158,-256.865754,0.00070685,120]
[325086923,1714512646167,-769.2,0.00070856,30]
[325086925,1714512646177,-1174.58703016,0.00071735,2]
[325086927,1714512646186,-769.2,0.00072077,30]
[325086929,1714512646196,-256.865754,0.00076712,120]
[325086931,1714512646205,-300.0,0.0008,105]
[325086933,1714512646214,-478.0,0.0008,60]
[325086935,1714512646223,-304.0,0.00081111,30]
[325086937,1714512646232,-317.26169189,0.000815,106]
[325086939,1714512646243,-256.865754,0.0008274,120]
[325086941,1714512646252,-769.2,0.00083479,60]
[325086943,1714512646261,-769.2,0.00084178,60]
[325086945,1714512646271,-500.0,0.000844,120]
[325086947,1714512646281,-169.75789,0.00086516,120]
[325086949,1714512646290,-180.92860709,0.0008726,4]
[325086951,1714512646300,-256.865754,0.00088767,120]
[325086953,1714512646309,-304.0,0.00093865,60]
[325086955,1714512646319,-256.865754,0.00094795,120]